bitfinex-derivatives/quotes_BNBF0:USTF0_20250510
["timestamp","ask_amount","ask_price","bid_price","bid_amount"]
[1746851649997,0.24933447,659.29,657.67,0.30410388]
[1746851650299,0.24933447,659.28,657.67,0.30410388]
[1746851650599,0.24933447,659.27,657.67,0.30410388]
[1746851650999,0.24933447,659.26,657.67,0.30410388]
[1746851651400,0.24933447,659.25,657.67,0.30410388]
[1746851651799,0.24933447,659.24,657.67,0.30410388]
[1746851652196,0.24933447,659.23,657.67,0.30410388]
[1746851652500,0.24933447,659.22,657.67,0.30410388]
[1746851652700,0.51364262,659.22,657.67,0.30410388]
[1746851653096,0.24933447,659.21,657.67,0.30410388]
[1746851653400,0.24933447,659.2,657.67,0.30410388]
[1746851653801,0.24933447,659.21,657.67,0.30410388]
[1746851654202,0.24933447,659.2,657.68,0.654]
[1746851654402,0.24933447,659.2,657.7,0.30409001]
[1746851654702,0.24933447,659.21,657.7,0.30409001]
[1746851654998,0.24933447,659.2,657.7,0.30409001]
[1746851655401,0.24933447,659.19,657.7,0.30409001]
[1746851655799,0.26430815,659.22,657.7,0.30409001]
[1746851655800,0.24933447,659.18,657.7,0.30409001]
[1746851656199,0.24933447,659.17,657.7,0.30409001]
[1746851656604,0.24933447,659.16,657.7,0.30409001]
[1746851656899,0.24933447,659.15,657.7,0.30409001]
[1746851657205,0.24933447,659.21,657.7,0.30409001]
[1746851657603,0.24933447,659.2,657.7,0.30409001]
[1746851657904,0.24933447,659.19,657.7,0.30409001]
[1746851658407,0.24933447,659.18,657.7,0.30409001]
[1746851658804,0.24933447,659.17,657.7,0.30409001]
[1746851659105,0.24933447,659.16,657.7,0.30409001]
[1746851659606,0.51364061,659.15,657.7,0.30409001]
[1746851659905,0.24933447,659.14,657.7,0.30409001]
[1746851660306,0.24933447,659.13,657.7,0.30409001]
[1746851660705,0.24933447,659.12,657.7,0.30409001]
[1746851661101,0.24933447,659.11,657.7,0.30409001]
[1746851661507,0.24933447,659.1,657.7,0.30409001]
[1746851661807,0.24933447,659.09,657.7,0.30409001]
[1746851662205,0.24933447,659.08,657.7,0.30409001]
[1746851662506,0.24933447,659.07,657.7,0.30409001]
[1746851662807,0.24933447,659.06,657.7,0.30409001]
[1746851663404,0.24933447,659.05,657.7,0.30409001]
[1746851663602,0.24933447,659.04,657.7,0.30409001]
[1746851664007,0.24933447,659.03,657.7,0.30409001]
[1746851664408,0.24933447,659.02,657.7,0.30409001]
[1746851664710,0.24933447,659.38,657.7,0.30409001]
[1746851665107,0.24933447,659.38,657.71,0.93992299]
[1746851665311,0.24933447,659.37,657.73,0.30407614]
[1746851665609,0.51361652,659.37,657.73,0.30407614]
[1746851666010,0.24933447,659.36,657.73,0.30407614]
[1746851666208,0.24933447,659.35,657.73,0.30407614]
[1746851666610,0.24933447,659.34,657.73,0.30407614]
[1746851667111,0.24933447,659.33,657.73,0.30407614]
[1746851667313,0.24933447,659.32,657.73,0.30407614]
[1746851667611,0.51361753,659.32,657.74,0.94016572]
[1746851667804,0.24933447,659.31,657.76,0.30406227]
[1746851668007,0.24933447,659.31,657.77,0.94010504]
[1746851668209,0.24933447,659.3,657.79,0.3040484]
[1746851668506,0.24933447,659.29,657.79,0.3040484]
[1746851668812,0.24933447,659.28,657.79,0.3040484]
[1746851669411,0.24933447,659.27,657.79,0.3040484]
[1746851669612,0.24933447,659.26,657.79,0.3040484]
[1746851670012,0.24933447,659.25,657.79,0.3040484]
[1746851670412,0.24933447,659.24,657.79,0.3040484]
[1746851670713,0.51358441,659.24,657.79,0.3040484]
[1746851671012,0.24933447,659.23,657.79,0.3040484]
[1746851671514,0.24933447,659.22,657.79,0.3040484]
[1746851671715,0.24933447,659.22,657.8,0.543]
[1746851671916,0.24933447,659.21,657.82,0.30403453]
[1746851672315,0.24933447,659.2,657.82,0.30403453]
[1746851672716,0.24933447,659.19,657.82,0.30403453]
[1746851673318,0.24933447,659.18,657.82,0.30403453]
[1746851673513,0.24933447,659.45,657.83,0.93955688]
[1746851673713,0.26421684,659.18,657.84,0.93955688]
[1746851673911,0.26421684,659.18,657.85,0.93955688]
[1746851674114,0.24933447,659.17,657.86,0.93955688]
[1746851674315,0.24933447,659.17,657.87,0.93955688]
[1746851674513,0.24933447,659.17,657.88,0.93955688]
[1746851674715,0.24933447,659.17,657.9,0.30399756]
[1746851674917,0.24933447,659.17,657.91,0.93955688]
[1746851675109,0.24933447,659.17,657.9,0.30399756]
[1746851675110,0.24933447,659.17,657.92,0.93955688]
[1746851675314,0.24933447,659.17,657.94,0.30397908]
[1746851675514,0.26421684,659.18,657.95,0.93955688]
[1746851675710,0.26421684,659.18,657.94,0.30397908]
[1746851675711,0.26421684,659.18,657.97,0.30396522]
[1746851675916,0.24960315,659.17,657.98,0.93955688]
[1746851676115,0.24960315,659.17,657.99,0.93955688]
[1746851676312,0.24960315,659.17,658.0,0.93955688]
[1746851676616,0.26411357,659.16,657.97,0.30396522]
[1746851676812,0.26411357,659.16,657.98,0.93808021]
[1746851677012,0.26411357,659.16,657.99,0.93808021]
[1746851677212,0.24960315,659.15,658.01,0.30394674]
[1746851677820,0.26411357,659.16,658.01,0.30394674]
[1746851678320,0.24960426,659.15,658.01,0.30394674]
[1746851679518,0.24960426,660.2,658.01,0.30394674]
[1746851680013,0.24960426,660.19,658.01,0.30394674]
[1746851680320,0.24960426,660.18,658.01,0.30394674]
[1746851680717,0.24960426,660.17,658.01,0.30394674]
[1746851681014,0.51370881,660.17,658.01,0.30394674]
[1746851681319,0.24960426,660.16,658.01,0.30394674]
[1746851681721,0.24960426,660.15,658.02,0.93732284]
[1746851682017,0.24960426,660.15,658.12,0.30389594]
[1746851682223,0.24960426,660.14,658.12,0.30389594]
[1746851682720,0.24960426,660.13,658.12,0.30389594]
[1746851682920,0.24960426,660.13,658.13,0.628]
[1746851683121,1.93745811,660.33,658.15,0.30388209]
[1746851683322,0.24964328,660.32,658.15,0.30388209]
[1746851683616,0.24964328,660.31,658.15,0.30388209]
[1746851683822,0.51371075,660.31,658.15,0.30388209]
[1746851684120,0.24964328,660.3,658.15,0.30388209]
[1746851684516,0.24964328,660.29,658.15,0.30388209]
[1746851684821,0.24964328,660.28,658.15,0.30388209]
[1746851685122,1.93745811,660.19,658.15,0.30388209]
[1746851685523,0.24964328,660.18,658.15,0.30388209]
[1746851685723,0.24964328,660.17,658.15,0.30388209]
[1746851686029,0.24964328,660.16,658.15,0.30388209]
[1746851686425,0.24964328,660.15,658.15,0.30388209]
[1746851686722,0.24964328,660.14,658.15,0.30388209]
[1746851687121,0.26406747,660.18,658.15,0.30388209]
[1746851687122,0.24964328,660.13,658.15,0.30388209]
[1746851687417,0.24964328,660.12,658.15,0.30388209]
[1746851687616,0.24964328,660.11,658.15,0.30388209]
[1746851687822,0.26406747,660.18,658.15,0.30388209]
[1746851687823,0.24964328,660.1,658.15,0.30388209]
[1746851688123,0.24964328,660.09,658.15,0.30388209]
[1746851688527,0.24964328,660.08,658.15,0.30388209]
[1746851688722,1.93745811,660.24,658.15,0.30388209]
[1746851689026,0.24963883,660.23,658.15,0.30388209]
[1746851689229,0.24963883,660.22,658.15,0.30388209]
[1746851689527,0.24963883,660.21,658.15,0.30388209]
[1746851689726,0.51372334,660.21,658.15,0.30388209]
[1746851689926,0.24963883,660.2,658.15,0.30388209]
[1746851690127,0.24963883,660.19,658.15,0.30388209]
[1746851690328,1.93745811,660.17,658.15,0.30388209]
[1746851690628,0.24963883,660.16,658.15,0.30388209]
[1746851690928,0.24963883,660.15,658.15,0.30388209]
[1746851691223,0.24963883,660.14,658.15,0.30388209]
[1746851691529,0.24963883,660.13,658.15,0.30388209]
[1746851691730,0.24963883,660.12,658.15,0.30388209]
[1746851692127,0.24963883,660.11,658.15,0.30388209]
[1746851692328,0.24963883,660.1,658.15,0.30388209]
[1746851692529,0.24963883,660.09,658.15,0.30388209]
[1746851692927,0.24963883,660.08,658.15,0.30388209]
[1746851693129,0.24963883,660.07,658.15,0.30388209]
[1746851693429,0.26409353,660.13,658.15,0.30388209]
[1746851694130,0.24960342,660.12,658.15,0.30388209]
[1746851694629,0.51368492,660.11,658.15,0.30388209]
[1746851694829,0.51368492,660.11,658.16,0.679]
[1746851695029,0.24960342,660.1,658.16,0.679]
[1746851695230,0.24960342,660.1,658.18,0.30386824]
[1746851695430,0.24960342,660.09,658.18,0.30386824]
[1746851695930,0.24960342,660.08,658.18,0.30386824]
[1746851696331,0.24960342,660.08,658.18,0.79486824]
[1746851696527,0.24960342,660.07,658.18,0.79486824]
[1746851696832,1.93745811,660.05,658.18,0.79486824]
[1746851697532,0.24960342,660.04,658.18,0.79486824]
[1746851697827,2.18706153,660.03,658.18,0.79486824]
[1746851698229,0.24960342,660.02,658.18,0.79486824]
[1746851698428,0.24960342,660.01,658.18,0.79486824]
[1746851698831,0.24960342,660.0,658.18,0.79486824]
[1746851699127,0.24960342,659.99,658.18,0.79486824]
[1746851699532,0.24960342,659.98,658.18,0.79486824]
[1746851699827,0.24960342,659.97,658.18,0.79486824]
[1746851700133,0.24960342,659.96,658.18,0.79486824]
[1746851700535,0.24960342,659.95,658.18,0.79486824]
[1746851700728,0.51368392,659.95,658.18,0.79486824]
[1746851700935,0.24960342,659.94,658.18,0.79486824]
[1746851701135,0.24960342,659.93,658.18,0.79486824]
[1746851701436,0.2640805,659.95,658.18,0.79486824]
[1746851701736,0.24968749,659.94,658.18,0.79486824]
[1746851702135,0.24968749,659.93,658.18,0.79486824]
[1746851702433,0.24968749,659.92,658.18,0.79486824]
[1746851702736,0.24968749,659.91,658.18,0.79486824]
[1746851703033,0.24968749,659.9,658.18,0.79486824]
[1746851703437,0.24968749,659.89,658.18,0.79486824]
[1746851703638,0.51376298,659.89,658.18,0.79486824]
[1746851704243,0.24968749,659.88,658.18,0.79486824]
[1746851705042,0.24968749,659.87,658.18,0.79486824]
[1746851705338,0.24968749,659.86,658.18,0.79486824]
[1746851705543,0.24968749,659.85,658.18,0.79486824]
[1746851705942,0.24968749,659.84,658.18,0.79486824]
[1746851706437,0.24968749,659.83,658.18,0.79486824]
[1746851707039,0.24968749,659.82,658.18,0.79486824]
[1746851707342,0.24968749,659.81,658.18,0.79486824]
[1746851707542,0.24968749,659.8,658.18,1.36886824]
[1746851707842,0.24968749,659.79,658.18,1.36886824]
[1746851708042,0.24968749,659.78,658.18,1.36886824]
[1746851709543,0.24968749,659.77,658.18,1.36886824]
[1746851709745,0.51377601,659.77,658.18,1.36886824]
[1746851709938,0.24968749,659.76,658.18,1.36886824]
[1746851710138,0.24968749,659.75,658.18,1.36886824]
[1746851710444,0.24968749,659.74,658.18,1.36886824]
[1746851710746,0.24968749,659.73,658.18,1.36886824]
[1746851711043,0.24968749,659.72,658.18,1.36886824]
[1746851711443,0.24968749,659.71,658.18,1.36886824]
[1746851711844,0.24968749,659.7,658.18,1.36886824]
[1746851712442,0.24968749,659.69,658.18,1.36886824]
[1746851712639,0.51378102,659.69,658.18,1.36886824]
[1746851712946,0.26409353,659.69,658.18,1.36886824]
[1746851713345,0.24991277,659.68,658.18,1.36886824]
[1746851713641,0.24991277,659.67,658.18,1.36886824]
[1746851714046,1.93745811,659.65,658.18,1.36886824]
[1746851714346,0.24991277,659.64,658.18,1.36886824]
[1746851714646,0.24991277,659.63,658.19,0.9381646]
[1746851714848,0.24991277,659.63,658.2,0.9381646]
[1746851715041,0.24991277,659.63,658.21,0.30385439]
[1746851715543,0.24991277,659.62,658.21,0.30385439]
[1746851715747,0.51403335,659.62,658.21,0.30385439]
[1746851715948,1.93745811,659.57,658.21,0.30385439]
[1746851716147,0.24991277,659.56,658.21,0.30385439]
[1746851716447,0.24991277,659.55,658.21,0.30385439]
[1746851716847,0.24991277,659.54,658.21,0.30385439]
[1746851717143,0.24991277,659.53,658.21,0.30385439]
[1746851717548,0.24991277,659.56,658.21,0.30385439]
[1746851718050,0.24991277,659.56,658.22,0.93834279]
[1746851718348,0.24991277,659.56,658.24,0.30384054]
[1746851718548,0.24991277,659.56,658.25,0.93834279]
[1746851718751,0.24991277,659.56,658.27,0.30382669]
[1746851718945,0.24991277,659.56,658.28,0.93834279]
[1746851719146,0.24991277,659.56,658.29,0.93834279]
[1746851719345,0.24991277,659.56,658.31,0.30380823]
[1746851719545,0.24991277,659.56,658.32,0.93834279]
[1746851719746,0.24991277,659.56,658.34,0.30379439]
[1746851719946,0.24991277,659.56,658.35,0.93834279]
[1746851720146,0.24991277,659.56,658.37,0.30378054]
[1746851720344,0.24991277,659.56,658.38,0.93815812]
[1746851720547,0.24991277,659.56,658.4,0.3037667]
[1746851720746,0.24991277,659.56,658.41,0.93815812]
[1746851720948,0.24991277,659.56,658.43,0.30375286]
[1746851721246,0.24991277,659.56,658.44,0.93815812]
[1746851721444,0.24991277,659.56,658.46,0.30373902]
[1746851721646,0.26403642,659.55,658.47,0.93815812]
[1746851721847,0.26403642,659.55,658.49,0.30372518]
[1746851722045,0.24991277,659.54,658.5,0.93787339]
[1746851722251,0.24991277,659.54,658.52,0.30371135]
[1746851723351,0.24991277,659.54,658.53,0.93786731]
[1746851723652,0.24991277,659.54,658.55,0.30369751]
[1746851724252,0.24991277,659.54,658.56,0.93792125]
[1746851724451,0.24991277,659.54,658.57,0.93792125]
[1746851724652,0.24991277,659.56,658.59,0.30367907]
[1746851724851,0.24991277,659.56,658.6,0.93792125]
[1746851725051,0.24991277,659.56,658.62,0.30366523]
[1746851725251,0.24991277,659.56,658.63,0.93792125]
[1746851725550,0.26397433,659.6,658.65,0.3036514]
[1746851725748,0.24991277,659.59,658.65,0.3036514]
[1746851727454,0.24991277,659.59,658.66,0.648]
[1746851727753,0.26401939,659.6,658.68,0.30363757]
[1746851728053,0.24991277,659.59,658.68,0.30363757]
[1746851730754,0.24991277,660.37,658.68,0.30363757]
[1746851731253,0.24991277,660.36,658.68,0.30363757]
[1746851731454,0.24991277,660.35,658.68,0.30363757]
[1746851731853,0.51380403,660.34,658.68,0.30363757]
[1746851732260,0.24991277,660.33,658.68,0.30363757]
[1746851732751,0.24991277,660.32,658.68,0.30363757]
[1746851732955,0.24991277,660.32,658.68,0.96863757]
[1746851733455,0.24991277,660.31,658.68,0.96863757]
[1746851733655,0.24991277,660.3,658.68,0.96863757]
[1746851733960,0.51380203,660.3,658.68,0.96863757]
[1746851734157,0.24991277,660.29,658.68,0.96863757]
[1746851734458,0.24991277,660.28,658.68,0.96863757]
[1746851734864,0.24991277,660.27,658.68,0.96863757]
[1746851735260,0.24991277,660.26,658.68,0.96863757]
[1746851735558,0.24991277,660.25,658.69,0.93749624]
[1746851735763,0.24991277,660.25,658.71,0.30362374]
[1746851735958,0.24991277,660.25,658.72,0.93749624]
[1746851736165,0.24991277,660.24,658.73,0.93749624]
[1746851736360,0.24991277,660.24,658.74,0.93719736]
[1746851736558,0.24991277,660.23,658.75,1.24080267]
[1746851736757,0.24991277,660.23,658.76,0.93719736]
[1746851736957,0.24991277,660.22,658.77,0.93719736]
[1746851737164,0.24991277,660.21,658.78,0.93719736]
[1746851737364,0.24991277,660.21,658.79,0.93719736]
[1746851737562,0.24991277,660.37,658.8,0.93719736]
[1746851737760,0.24991277,660.37,658.81,0.93719736]
[1746851738061,1.93745811,660.6,658.82,0.93678794]
[1746851738268,0.24992471,660.36,658.75,0.30360531]
[1746851738462,0.24992471,660.36,658.76,0.9365233]
[1746851738665,0.24992471,660.36,658.77,0.9365233]
[1746851738865,0.24992471,660.36,658.75,0.30360531]
[1746851738866,0.24992471,660.37,658.78,0.9365233]
[1746851739065,0.24992471,660.37,658.79,0.9365233]
[1746851739363,0.24992471,660.37,658.8,0.9365233]
[1746851739665,0.24992471,660.37,658.81,0.9365233]
[1746851739666,0.26386225,660.36,658.81,0.9365233]
[1746851739967,0.26386225,660.36,658.82,0.93627971]
[1746851740168,0.24992471,660.35,658.75,0.30360531]
[1746851740469,0.24992471,660.35,658.76,0.9360907]
[1746851740767,0.24992471,660.35,658.77,0.9360907]
[1746851740967,0.24992471,660.35,658.78,0.9360907]
[1746851741168,0.24992471,660.35,658.79,0.9360907]
[1746851741367,0.24992471,660.35,658.8,0.9360907]
[1746851741663,0.24992471,660.35,658.81,0.9360907]
[1746851741968,0.24992471,660.35,658.82,0.9360907]
[1746851742271,0.24992471,660.35,658.83,0.9360907]
[1746851742468,0.24992471,660.35,658.75,0.30360531]
[1746851742663,0.26383724,660.34,658.76,0.93567358]
[1746851742863,0.26383724,660.34,658.77,0.93567358]
[1746851743066,0.26383724,660.34,658.78,0.93567358]
[1746851743267,0.26383724,660.34,658.8,0.30358227]
[1746851743268,0.24992471,660.33,658.8,0.30358227]
[1746851743460,0.24992471,660.33,658.81,0.93567358]
[1746851743667,0.24992471,660.33,658.82,0.93546352]
[1746851743867,0.24992471,660.33,658.83,0.93546352]
[1746851744067,0.24992471,660.33,658.8,0.30358227]
[1746851744264,0.26383724,660.34,658.81,0.9352629]
[1746851744567,0.24984446,660.33,658.83,0.30356844]
[1746851746371,0.24984446,660.32,658.83,0.30356844]
[1746851746671,0.24984446,660.33,658.83,0.30356844]
[1746851747466,0.24984446,660.32,658.83,0.30356844]
[1746851747972,0.24984446,660.31,658.83,0.30356844]
[1746851748473,0.24984446,660.31,658.84,0.558]
[1746851748675,0.24984446,660.3,658.86,0.30355462]
[1746851748973,0.24984446,660.29,658.86,0.30355462]
[1746851749273,0.24984446,660.28,658.86,0.30355462]
[1746851749774,0.24984446,660.27,658.86,0.30355462]
[1746851750173,0.24984446,660.26,658.86,0.30355462]
[1746851750472,0.24984446,660.25,658.86,0.30355462]
[1746851750773,0.24984446,660.24,658.86,0.30355462]
[1746851751571,0.26389326,660.23,658.86,0.30355462]
[1746851751874,0.51373772,660.23,658.86,0.30355462]
[1746851752277,0.24984446,660.22,658.86,0.30355462]
[1746851752476,0.26389326,660.23,658.86,0.30355462]
[1746851754278,1.93745811,660.46,658.86,0.30355462]
[1746851754583,0.2497271,660.22,658.86,0.30355462]
[1746851755176,0.2497271,660.36,658.86,0.30355462]
[1746851755678,0.2497271,660.35,658.86,0.30355462]
[1746851755978,0.2497271,660.34,658.86,0.30355462]
[1746851756279,0.2497271,660.33,658.86,0.30355462]
[1746851756679,0.2497271,660.36,658.86,0.30355462]
[1746851757179,0.2497271,660.35,658.86,0.30355462]
[1746851757879,0.2497271,660.36,658.86,0.30355462]
[1746851758179,0.2497271,660.35,658.86,0.30355462]
[1746851758680,0.51357434,660.34,658.86,0.30355462]
[1746851759081,0.2497271,660.33,658.86,0.30355462]
[1746851759479,0.2497271,660.32,658.86,0.30355462]
[1746851759779,0.2497271,660.32,658.87,0.599]
[1746851759981,0.2497271,660.31,658.89,0.3035408]
[1746851760372,0.2497271,660.3,658.89,0.3035408]
[1746851760678,0.2497271,660.29,658.89,0.3035408]
[1746851761080,0.2497271,660.37,658.89,0.3035408]
[1746851761474,0.2497271,660.36,658.89,0.3035408]
[1746851761679,0.51359635,660.36,658.89,0.3035408]
[1746851762080,0.2497271,660.35,658.89,0.3035408]
[1746851762577,0.2497271,660.34,658.89,0.3035408]
[1746851763079,0.2497271,660.33,658.89,0.3035408]
[1746851763574,0.2497271,660.32,658.89,0.3035408]
[1746851763980,0.2497271,660.31,658.89,0.3035408]
[1746851764379,1.93745811,661.29,658.89,0.3035408]
[1746851764380,0.2497271,660.3,658.89,0.3035408]
[1746851764778,0.2497271,660.29,658.89,0.3035408]
[1746851764979,0.2497271,660.28,658.89,0.3035408]
[1746851765579,0.2497271,660.27,658.89,0.3035408]
[1746851765779,0.2497271,660.26,658.89,0.3035408]
[1746851766081,0.2497271,660.25,658.89,0.3035408]
[1746851766480,0.2497271,660.24,658.89,0.3035408]
[1746851766680,0.2497271,660.37,658.89,0.3035408]
[1746851767077,0.2497271,660.36,658.89,0.3035408]
[1746851767383,0.2497271,660.35,658.89,0.3035408]
[1746851767582,0.2497271,660.35,658.9,0.602]
[1746851767985,0.2497271,660.34,658.9,0.602]
[1746851768181,0.2497271,660.33,658.9,0.602]
[1746851768383,0.51356634,660.33,658.9,0.602]
[1746851768684,0.2497271,660.32,658.9,0.602]
[1746851768879,0.2497271,660.31,658.92,0.30352698]
[1746851769484,0.2497271,660.3,658.92,0.30352698]
[1746851769786,0.2497271,660.29,658.92,0.30352698]
[1746851770185,0.2497271,660.28,658.92,0.30352698]
[1746851770886,2.20129935,660.27,658.92,0.30352698]
[1746851771285,2.45102645,660.27,658.92,0.30352698]
[1746851771487,0.2497271,660.26,658.92,0.30352698]
[1746851772088,2.20129935,660.27,658.92,0.30352698]
[1746851772289,0.24942912,660.26,658.92,0.30352698]
[1746851772689,0.51327936,660.25,658.92,0.30352698]
[1746851773687,0.24942912,660.24,658.92,0.30352698]
[1746851773990,0.24942912,660.23,658.92,0.30352698]
[1746851774288,0.24942912,660.22,658.92,0.30352698]
[1746851774790,0.24942912,660.24,658.92,0.30352698]
[1746851775697,0.26386625,660.23,658.92,0.30352698]
[1746851775997,0.24942912,660.22,658.92,0.30352698]
[1746851778098,0.24942912,660.21,658.92,0.30352698]
[1746851778599,0.51330437,660.2,658.92,0.30352698]
[1746851778899,0.24942912,660.19,658.92,0.30352698]
[1746851779399,0.24942912,660.18,658.92,0.30352698]
[1746851779699,0.24942912,660.17,658.92,0.30352698]
[1746851780200,0.24942912,660.16,658.92,0.30352698]
[1746851780600,0.24942912,660.15,658.92,0.30352698]
[1746851780899,0.24942912,660.14,658.92,0.30352698]
[1746851781199,0.24942912,660.19,658.92,0.30352698]
[1746851781500,0.24942912,660.18,658.92,0.30352698]
[1746851781898,0.24942912,660.17,658.92,0.30352698]
[1746851782298,0.24942912,660.19,658.92,0.30352698]
[1746851782498,0.24942912,660.18,658.92,0.30352698]
[1746851782799,0.24942912,660.19,658.92,0.30352698]
[1746851783100,0.24942912,660.18,658.92,0.30352698]
[1746851783401,0.24942912,660.19,658.92,0.30352698]
[1746851783804,0.24942912,660.18,658.92,0.30352698]
[1746851784203,0.24942912,660.19,658.92,0.30352698]
[1746851784598,0.24942912,660.18,658.92,0.30352698]
[1746851784801,0.51328836,660.18,658.92,0.30352698]
[1746851785002,0.24942912,660.17,658.92,0.30352698]
[1746851785498,0.24942912,660.16,658.92,0.30352698]
[1746851785702,0.24942912,660.16,658.93,0.94389432]
[1746851785904,0.24942912,660.15,658.95,0.30351316]
[1746851786096,0.24942912,660.14,658.95,0.30351316]
[1746851786405,1.93745811,660.48,658.95,0.30351316]
[1746851786698,0.2491069,660.37,658.95,0.30351316]
[1746851786898,0.2491069,660.37,658.96,0.94394007]
[1746851787101,0.2491069,660.37,658.95,0.30351316]
[1746851787102,0.2491069,660.36,658.98,0.30349934]
[1746851787503,0.2491069,660.35,658.98,0.30349934]
[1746851787707,0.2491069,660.34,658.98,0.30349934]
[1746851788106,0.2491069,660.33,658.98,0.30349934]
[1746851788607,0.2491069,660.32,658.98,0.30349934]
[1746851788901,0.2491069,660.31,658.98,0.30349934]
[1746851789207,0.26383824,660.3,658.98,0.30349934]
[1746851789408,0.51294514,660.3,658.98,0.30349934]
[1746851789702,0.2491069,660.29,658.98,0.30349934]
[1746851790207,0.2491069,660.28,658.98,0.30349934]
[1746851790507,0.2491069,660.27,658.98,0.30349934]
[1746851790807,0.2491069,660.26,658.98,0.30349934]
[1746851791207,0.2491069,660.25,658.98,0.30349934]
[1746851791404,1.93745811,660.21,658.98,0.30349934]
[1746851791602,0.2491069,660.2,658.98,0.30349934]
[1746851792106,0.2491069,660.19,658.98,0.30349934]
[1746851792408,0.2491069,660.18,658.98,0.30349934]
[1746851792708,0.2491069,660.17,658.98,0.30349934]
[1746851793009,0.2491069,660.16,658.98,0.30349934]
[1746851793504,0.2491069,660.15,658.98,0.30349934]
[1746851793704,0.51296514,660.15,658.98,0.30349934]
[1746851793906,0.2491069,660.14,658.99,0.628]
[1746851794105,0.2491069,660.14,659.01,0.30348553]
[1746851795807,0.2491069,660.13,659.01,0.30348553]
[1746851796110,0.2491069,660.12,659.01,0.30348553]
[1746851796711,0.26383324,660.11,659.01,0.30348553]
[1746851797211,0.2491069,660.1,659.01,0.30348553]
[1746851799516,0.26383624,660.09,659.01,0.30348553]
[1746851800016,0.2491069,660.08,659.01,0.30348553]
[1746851802621,0.26383424,660.07,659.01,0.30348553]
[1746851802821,0.51294114,660.07,659.01,0.30348553]
[1746851803223,0.2491069,660.06,659.01,0.30348553]
[1746851805626,0.26383924,660.05,659.01,0.30348553]
[1746851805925,0.2491069,660.04,659.01,0.30348553]
[1746851806321,0.2491069,660.04,659.02,0.487]
[1746851806630,0.2491069,660.04,659.04,0.30347171]
[1746851811130,0.2491069,660.04,659.05,0.479]
[1746851811631,0.26384724,660.03,659.07,0.3034579]
[1746851811828,0.2491069,660.02,659.07,0.3034579]
[1746851814734,0.26384624,660.01,659.07,0.3034579]
[1746851815134,0.2491069,660.0,659.07,0.3034579]
[1746851817835,1.93745811,660.26,659.07,0.3034579]
[1746851818035,0.26385224,659.99,659.07,0.3034579]
[1746851818337,0.2491069,660.25,659.07,0.3034579]
[1746851818635,0.2491069,660.24,659.07,0.3034579]
[1746851818935,0.51296514,660.24,659.07,0.3034579]
[1746851819131,0.2491069,660.23,659.07,0.3034579]
[1746851820438,0.2491069,660.22,659.07,0.3034579]
[1746851820738,0.2491069,660.21,659.07,0.3034579]
[1746851820939,0.51299516,660.21,659.07,0.3034579]
[1746851821139,0.2491069,660.2,659.07,0.3034579]
[1746851824041,0.2491069,660.37,659.07,0.3034579]
[1746851824252,0.26387825,660.19,659.07,0.3034579]
[1746851824550,0.2491069,660.36,659.07,0.3034579]
[1746851824746,0.2491069,660.35,659.07,0.3034579]
[1746851825050,0.2491069,660.34,659.07,0.3034579]
[1746851825245,0.2491069,660.33,659.07,0.3034579]
[1746851825550,0.2491069,660.32,659.07,0.3034579]
[1746851825951,0.2491069,660.31,659.07,0.3034579]
[1746851826752,0.26387025,660.3,659.07,0.3034579]
[1746851827248,0.51297715,660.3,659.07,0.3034579]
[1746851827753,0.2491069,660.29,659.07,0.3034579]
[1746851828052,0.2491069,660.28,659.07,0.3034579]
[1746851828251,0.2491069,660.27,659.07,0.3034579]
[1746851828457,0.2491069,660.26,659.07,0.3034579]
[1746851828753,0.2491069,660.25,659.07,0.3034579]
[1746851828955,0.2491069,660.24,659.07,0.3034579]
[1746851829250,0.2491069,660.23,659.07,0.3034579]
[1746851829655,0.2491069,660.22,659.07,0.3034579]
[1746851829850,0.2491069,660.21,659.07,0.3034579]
[1746851830158,0.2491069,660.2,659.07,0.3034579]
[1746851830454,0.2491069,660.19,659.07,0.3034579]
[1746851830654,0.2491069,660.18,659.07,0.3034579]
[1746851830954,0.2491069,660.17,659.07,0.3034579]
[1746851831149,0.2491069,660.16,659.07,0.3034579]
[1746851831353,1.93745811,660.1,659.07,0.3034579]
[1746851831756,0.2491069,660.09,659.07,0.3034579]
[1746851832652,0.26396732,660.08,659.07,0.3034579]
[1746851833053,0.51307422,660.08,659.07,0.3034579]
[1746851833354,0.2491069,660.07,659.07,0.3034579]
[1746851833660,0.2491069,660.06,659.07,0.3034579]
[1746851833855,0.2491069,660.05,659.07,0.3034579]
[1746851834061,1.93745811,659.98,659.07,0.3034579]
[1746851835762,0.2491069,660.04,659.07,0.3034579]
[1746851836158,0.2491069,660.03,659.07,0.3034579]
[1746851836461,0.2491069,660.02,659.07,0.3034579]
[1746851836762,0.2491069,660.01,659.07,0.3034579]
[1746851837063,0.2491069,660.0,659.07,0.3034579]
[1746851837464,0.2491069,659.99,659.07,0.3034579]
[1746851837863,0.2491069,659.98,659.07,0.3034579]
[1746851838459,0.2491069,659.98,659.08,0.623]
[1746851838664,0.51309425,659.97,659.08,0.623]
[1746851839066,0.2491069,659.96,659.09,0.30344869]
[1746851841768,0.26395331,659.95,659.09,0.30344869]